Workbook

Sheet 様式選択
C2: キャリアアップ助成金正社員化コース
C3: 賃金上昇要件確認ツール 様式選択
B4: ①はじめに、「コンテンツの有効化」をクリックしてください
B7: ②下記のボタンをクリックしていただくと、該当のシートにジャンプします。
B28: 注：例えば、パートからフルタイムへの転換、シフト制の場合や
B29: 時給（日給）から時給（日給）への転換については、
B30: 「変更が生じている」場合のツールをご活用ください。

Sheet No1
B1: キャリアアップ助成金正社員化コース 賃金上昇要件確認ツール （転換等の前後で所定労働時間および給与支給形態に変更がない場合）
A2: 名 前 （雇用保険被保険者番号）
A4: 転換または直接雇用前６か月（A）
A5: 賃金算定期間 | F5: 月 | I5: 日 | M5: 月 | P5: 日 | T5: 月 | W5: 日 | AA5: 月 | AD5: 日 | AH5: 月 | AK5: 日 | AO5: 月 | AR5: 日
C6: ～ | F6: 月 | I6: 日 | J6: ～ | M6: 月 | P6: 日 | Q6: ～ | T6: 月 | W6: 日 | X6: ～ | AA6: 月 | AD6: 日 | AE6: ～ | AH6: 月 | AK6: 日 | AL6: ～ | AO6: 月 | AR6: 日
A7: 基本賃金
A8: 手 当 | B8: 手当
B9: 手当
B10: 手当
B11: 手当
B12: 手当
B13: 手当
B14: 手当
B15: 手当
B16: 手当
B17: 手当
A18: 賞 与
A19: 合 計 | C19: =SUM(C7:I18) -> 0 | J19: =SUM(J7:P18) -> 0 | Q19: =SUM(Q7:W18) -> 0 | X19: =SUM(X7:AD18) -> 0 | AE19: =SUM(AE7:AK18) -> 0 | AL19: =SUM(AL7:AR18) -> 0 | AS19: =SUM(C19:AR19) -> 0
A22: 転換または直接雇用後６か月（B）
A23: 賃金算定期間 | F23: 月 | I23: 日 | M23: 月 | P23: 日 | T23: 月 | W23: 日 | AA23: 月 | AD23: 日 | AH23: 月 | AK23: 日 | AO23: 月 | AR23: 日
C24: ～ | F24: 月 | I24: 日 | J24: ～ | M24: 月 | P24: 日 | Q24: ～ | T24: 月 | W24: 日 | X24: ～ | AA24: 月 | AD24: 日 | AE24: ～ | AH24: 月 | AK24: 日 | AL24: ～ | AO24: 月 | AR24: 日
A25: 基本賃金
A26: 手 当 | B26: 手当
B27: 手当
B28: 手当
B29: 手当
B30: 手当
B31: 手当
B32: 手当
B33: 手当
B34: 手当
B35: 手当
A36: 賞 与
A37: 合 計 | C37: =SUM(C25:I36) -> 0 | J37: =SUM(J25:P36) -> 0 | Q37: =SUM(Q25:W36) -> 0 | X37: =SUM(X25:AD36) -> 0 | AE37: =SUM(AE25:AK36) -> 0 | AL37: =SUM(AL25:AR36) -> 0 | AS37: =SUM(C37:AR37) -> 0
A39: （B）の賃金算定期間外で、支給申請時点で支給が確定している賞与（C）
A41: 支給日 | C41: 平成○年○月○日
A42: 金額
A44: 転換前後で基本給が低下していないか： | S44: =IF(SUM(C25:AR25)>=SUM(C7:AR7),"基本給は低下していない","基本給が低下しているため、支給対象にならない場合があります。") -> 基本給は低下していない
C45: （B） | K45: （C） | T45: （A）
AN46: 賃金上昇率
C47: =AS37 -> 0 | J47: ＋ | K47: =C42 -> 0 | R47: － | T47: =AS19 -> 0 | AN47: =IFERROR(INT(((C47+K47)-T47)/C50*100),0) -> 0
AC48: × 100 | AJ48: ＝
C50: =AS19 -> 0
Z51: ※小数点以下切捨で５％以上の増額が必要です。

Sheet No1 記載例
B1: キャリアアップ助成金正社員化コース 賃金上昇要件確認ツール （転換等の前後で所定労働時間および給与支給形態に変更がない場合）
A2: 名 前 （雇用保険被保険者番号） | C2: 厚労 太郎
C3: 1111-111111-1
A4: 転換または直接雇用前６か月（A）
A5: 賃金算定期間 | C5: 10 | D5: 月 | E5: 1 | F5: 日 | J5: 11 | K5: 月 | L5: 1 | M5: 日 | Q5: 12 | R5: 月 | S5: 1 | T5: 日 | X5: 1 | Y5: 月 | Z5: 1 | AA5: 日 | AE5: 2 | AF5: 月 | AG5: 1 | AH5: 日 | AL5: 3 | AM5: 月 | AN5: 1 | AO5: 日
E6: ～ | F6: 10 | G6: 月 | H6: 31 | I6: 日 | L6: ～ | M6: 11 | N6: 月 | O6: 30 | P6: 日 | S6: ～ | T6: 12 | U6: 月 | V6: 31 | W6: 日 | Z6: ～ | AA6: 1 | AB6: 月 | AC6: 31 | AD6: 日 | AG6: ～ | AH6: 2 | AI6: 月 | AJ6: 28 | AK6: 日 | AN6: ～ | AO6: 3 | AP6: 月 | AQ6: 31 | AR6: 日
A7: 基本賃金 | C7: 180000 | J7: 180000 | Q7: 180000 | X7: 180000 | AE7: 180000 | AL7: 180000
A8: 手 当 | B8: 家族手当 | C8: 5000 | J8: 5000 | Q8: 5000 | X8: 5000 | AE8: 5000 | AL8: 5000
B9: 手当
B10: 手当
B11: 手当
B12: 手当
B13: 手当
B14: 手当
B15: 手当
B16: 手当
B17: 手当
A18: 賞 与
A19: 合 計 | C19: =SUM(C7:I18) -> 185000 | J19: =SUM(J7:P18) -> 185000 | Q19: =SUM(Q7:W18) -> 185000 | X19: =SUM(X7:AD18) -> 185000 | AE19: =SUM(AE7:AK18) -> 185000 | AL19: =SUM(AL7:AR18) -> 185000 | AS19: =SUM(C19:AR19) -> 1110000
A22: 転換または直接雇用後６か月（B）
A23: 賃金算定期間 | C23: 4 | D23: 月 | E23: 1 | F23: 日 | J23: 5 | K23: 月 | L23: 1 | M23: 日 | Q23: 6 | R23: 月 | S23: 1 | T23: 日 | X23: 7 | Y23: 月 | Z23: 1 | AA23: 日 | AE23: 8 | AF23: 月 | AG23: 1 | AH23: 日 | AL23: 9 | AM23: 月 | AN23: 1 | AO23: 日
E24: ～ | F24: 4 | G24: 月 | H24: 30 | I24: 日 | L24: ～ | M24: 5 | N24: 月 | O24: 31 | P24: 日 | S24: ～ | T24: 6 | U24: 月 | V24: 30 | W24: 日 | Z24: ～ | AA24: 7 | AB24: 月 | AC24: 31 | AD24: 日 | AG24: ～ | AH24: 8 | AI24: 月 | AJ24: 31 | AK24: 日 | AN24: ～ | AO24: 9 | AP24: 月 | AQ24: 30 | AR24: 日
A25: 基本賃金 | C25: 200000 | J25: 200000 | Q25: 200000 | X25: 200000 | AE25: 200000 | AL25: 200000
A26: 手 当 | B26: 家族手当 | C26: 5000 | J26: 5000 | Q26: 5000 | X26: 5000 | AE26: 5000 | AL26: 5000
B27: 役職手当 | C27: 10000 | J27: 10000 | Q27: 10000 | X27: 10000 | AE27: 10000 | AL27: 10000
B28: 手当
B29: 手当
B30: 手当
B31: 手当
B32: 手当
B33: 手当
B34: 手当
B35: 手当
A36: 賞 与 | Q36: 250000
A37: 合 計 | C37: =SUM(C25:I36) -> 215000 | J37: =SUM(J25:P36) -> 215000 | Q37: =SUM(Q25:W36) -> 465000 | X37: =SUM(X25:AD36) -> 215000 | AE37: =SUM(AE25:AK36) -> 215000 | AL37: =SUM(AL25:AR36) -> 215000 | AS37: =SUM(C37:AR37) -> 1540000
A39: （B）の賃金算定期間外で、支給申請時点で支給が確定している賞与（C）
A41: 支給日
A42: 金額
C45: （B） | K45: （C） | T45: （A）
AN46: 賃金上昇率
C47: =+AS37 -> 1540000 | J47: ＋ | K47: =+C42 -> 0 | R47: － | T47: =+AS19 -> 1110000 | AN47: =+INT(((C47+K47)-T47)/C50*100) -> 38
AC48: × 100 | AJ48: ＝
C50: =+AS19 -> 1110000

Sheet No2
B1: キャリアアップ助成金正社員化コース 賃金上昇要件確認ツール （転換等の前後で所定労働時間や給与支給形態に変更が生じている場合）
A2: 名 前 （雇用保険被保険者番号）
A4: 転換または直接雇用前６か月（A）
A5: 賃金算定期間 | E5: 月 | H5: 日 | I5: ～ | L5: 月 | O5: 日 | P5: ～ | S5: 月 | V5: 日 | W5: ～ | Z5: 月 | AC5: 日 | AD5: ～ | AG5: 月 | AJ5: 日 | AK5: ～ | AN5: 月 | AQ5: 日 | AR5: ～ | AS5: 合 計
E6: 月 | H6: 日 | L6: 月 | O6: 日 | S6: 月 | V6: 日 | Z6: 月 | AC6: 日 | AG6: 月 | AJ6: 日 | AN6: 月 | AQ6: 日
A7: 1月の月平均所定労働時間（※） | AS7: =SUM(C7:AR7) -> 0
A8: 基本賃金 | AS8: =SUM(C8:AR8) -> 0
A9: 手 当 | B9: 手当 | AS9: 0
B10: 手当 | AS10: =SUM(C10:AR10) -> 0
B11: 手当 | AS11: 0
B12: 手当 | AS12: 0
B13: 手当 | AS13: 0
B14: 手当 | AS14: 0
B15: 手当 | AS15: =SUM(C15:AR15) -> 0
B16: 手当 | AS16: 0
B17: 手当 | AS17: 0
B18: 手当 | AS18: 0
A19: 賞 与 | AS19: 0
A20: 合 計 | C20: =SUM(C8:I19) -> 0 | J20: =SUM(J8:P19) -> 0 | Q20: =SUM(Q8:W19) -> 0 | X20: =SUM(X8:AD19) -> 0 | AE20: =SUM(AE8:AK19) -> 0 | AL20: =SUM(AL8:AR19) -> 0 | AS20: =SUM(C20:AR20) -> 0
AE22: 転換前1時間あたり賃金→ | AS22: =IFERROR(ROUNDUP(AS20/AS7,0),0) -> 0
A24: 転換または直接雇用後６か月（B）
A25: 賃金算定期間 | E25: 月 | H25: 日 | I25: ～ | L25: 月 | O25: 日 | P25: ～ | S25: 月 | V25: 日 | W25: ～ | Z25: 月 | AC25: 日 | AD25: ～ | AG25: 月 | AJ25: 日 | AK25: ～ | AN25: 月 | AQ25: 日 | AR25: ～ | AS25: 合 計
E26: 月 | H26: 日 | L26: 月 | O26: 日 | S26: 月 | V26: 日 | Z26: 月 | AC26: 日 | AG26: 月 | AJ26: 日 | AN26: 月 | AQ26: 日
A27: 1月の月平均所定労働時間（※） | AS27: =SUM(C27:AR27) -> 0
A28: 基本賃金 | AS28: =SUM(C28:AR28) -> 0
A29: 手 当 | B29: 手当 | AS29: 0
B30: 手当 | AS30: 0
B31: 手当 | AS31: 0
B32: 手当 | AS32: 0
B33: 手当 | AS33: 0
B34: 手当 | AS34: 0
B35: 手当 | AS35: 0
B36: 手当 | AS36: 0
B37: 手当 | AS37: 0
B38: 手当 | AS38: 0
A39: 賞 与 | AS39: 0
A40: 合 計 | C40: =SUM(C28:I39) -> 0 | J40: =SUM(J28:P39) -> 0 | Q40: =SUM(Q28:W39) -> 0 | X40: =SUM(X28:AD39) -> 0 | AE40: =SUM(AE28:AK39) -> 0 | AL40: =SUM(AL28:AR39) -> 0 | AS40: =SUM(C40:AR40) -> 0
A41: （※）時給制または日給制であり、シフト制など月の所定労働時間または所定労働日数がない場合のみ、実労働時間を記載してください。
A42: （B）の賃金算定期間外で、支給申請時点で支給が確定している賞与（C）
A44: 支給日 | C44: 平成○年○月○日 | AL44: （B）＋（C）
A45: 金額 | Y45: 転換後1時間あたり賃金→ | AL45: =IFERROR(ROUNDUP((AS40+C45)/AS27,0),0) -> 0
A47: 転換前後で基本給が低下していないか： | L47: =IF(OR(AS27=0,AS7=0),"基本給及び所定労働時間を入力してください。",IF((AS28/AS27)>=(AS8/AS7),"基本給は低下していない","基本給が低下しているため、支給対象にならない場合があります。")) -> 基本給及び所定労働時間を入力してください。
K48: （B）＋（C） | T48: （A）
AN49: 賃金上昇率
K50: =AL45 -> 0 | R50: － | T50: =AS22 -> 0 | AN50: =IFERROR(INT((K50-T50)/K53*100),0) -> 0
AC51: × 100 | AJ51: ＝
K53: =AS22 -> 0
AE54: ※小数点以下切捨で５％以上の増額が必要です。

Sheet No2 記載例
B1: キャリアアップ助成金正社員化コース 賃金上昇要件確認ツール （転換等の前後で所定労働時間や給与支給形態に変更が生じている場合）
A2: 名 前 （雇用保険被保険者番号） | C2: 厚労 太郎
C3: 1111-111111-1
A4: 転換または直接雇用前６か月（A）
A5: 賃金算定期間 | C5: 10 | D5: 月 | E5: 1 | F5: 日 | J5: 11 | K5: 月 | L5: 1 | M5: 日 | Q5: 12 | R5: 月 | S5: 1 | T5: 日 | X5: 1 | Y5: 月 | Z5: 1 | AA5: 日 | AE5: 2 | AF5: 月 | AG5: 1 | AH5: 日 | AL5: 3 | AM5: 月 | AN5: 1 | AO5: 日 | AS5: 合 計
E6: ～ | F6: 10 | G6: 月 | H6: 31 | I6: 日 | L6: ～ | M6: 11 | N6: 月 | O6: 30 | P6: 日 | S6: ～ | T6: 12 | U6: 月 | V6: 31 | W6: 日 | Z6: ～ | AA6: 1 | AB6: 月 | AC6: 31 | AD6: 日 | AG6: ～ | AH6: 2 | AI6: 月 | AJ6: 28 | AK6: 日 | AN6: ～ | AO6: 3 | AP6: 月 | AQ6: 31 | AR6: 日
A7: 1月の月平均所定労働時間（※） | C7: 120 | J7: 120 | Q7: 120 | X7: 120 | AE7: 120 | AL7: 120 | AS7: =SUM(C7:AR7) -> 720
A8: 基本賃金 | C8: 144000 | J8: 144000 | Q8: 144000 | X8: 144000 | AE8: 144000 | AL8: 144000 | AS8: 864000
A9: 手 当 | B9: 手当 | AS9: 0
B10: 手当 | AS10: 0
B11: 手当 | AS11: 0
B12: 手当 | AS12: 0
B13: 手当 | AS13: 0
B14: 手当 | AS14: 0
B15: 手当 | AS15: 0
B16: 手当 | AS16: 0
B17: 手当 | AS17: 0
B18: 手当 | AS18: 0
A19: 賞 与 | Q19: 50000 | AS19: 50000
A20: 合 計 | C20: =SUM(C8:I19) -> 144000 | J20: =SUM(J8:P19) -> 144000 | Q20: =SUM(Q8:W19) -> 194000 | X20: =SUM(X8:AD19) -> 144000 | AE20: =SUM(AE8:AK19) -> 144000 | AL20: =SUM(AL8:AR19) -> 144000 | AS20: 914000
AE22: 転換前1時間あたり賃金→ | AS22: =ROUNDUP(AS20/AS7,0) -> 1270
A24: 転換または直接雇用後６か月（B）
A25: 賃金算定期間 | C25: 4 | D25: 月 | E25: 1 | F25: 日 | J25: 5 | K25: 月 | L25: 1 | M25: 日 | Q25: 6 | R25: 月 | S25: 1 | T25: 日 | X25: 7 | Y25: 月 | Z25: 1 | AA25: 日 | AE25: 8 | AF25: 月 | AG25: 1 | AH25: 日 | AL25: 9 | AM25: 月 | AN25: 1 | AO25: 日 | AS25: 合 計
E26: ～ | F26: 4 | G26: 月 | H26: 30 | I26: 日 | L26: ～ | M26: 5 | N26: 月 | O26: 31 | P26: 日 | S26: ～ | T26: 6 | U26: 月 | V26: 30 | W26: 日 | Z26: ～ | AA26: 7 | AB26: 月 | AC26: 31 | AD26: 日 | AG26: ～ | AH26: 8 | AI26: 月 | AJ26: 31 | AK26: 日 | AN26: ～ | AO26: 9 | AP26: 月 | AQ26: 30 | AR26: 日
A27: 1月の月平均所定労働時間（※） | C27: 160 | J27: 160 | Q27: 160 | X27: 160 | AE27: 160 | AL27: 160 | AS27: =SUM(C27:AR27) -> 960
A28: 基本賃金 | C28: 240000 | J28: 240000 | Q28: 240000 | X28: 240000 | AE28: 240000 | AL28: 240000 | AS28: 1440000
A29: 手 当 | B29: 手当 | AS29: 0
B30: 手当 | AS30: 0
B31: 手当 | AS31: 0
B32: 手当 | AS32: 0
B33: 手当 | AS33: 0
B34: 手当 | AS34: 0
B35: 手当 | AS35: 0
B36: 手当 | AS36: 0
B37: 手当 | AS37: 0
B38: 手当 | AS38: 0
A39: 賞 与 | Q39: 100000 | AS39: 100000
A40: 合 計 | C40: =SUM(C28:I39) -> 240000 | J40: =SUM(J28:P39) -> 240000 | Q40: =SUM(Q28:W39) -> 340000 | X40: =SUM(X28:AD39) -> 240000 | AE40: =SUM(AE28:AK39) -> 240000 | AL40: =SUM(AL28:AR39) -> 240000 | AS40: 1540000
A42: （B）の賃金算定期間外で、支給申請時点で支給が確定している賞与（C）
A44: 支給日
A45: 金額
AL47: （B）＋（C）
Y48: 転換後1時間あたり賃金→ | AL48: =ROUNDUP((AS40+C45)/AS27,0) -> 1605
K50: （B）＋（C） | T50: （A）
AN51: 賃金上昇率
K52: =+AL48 -> 1605 | R52: － | T52: =+AS22 -> 1270 | AN52: =+INT((K52-T52)/K55*100) -> 26
AC53: × 100 | AJ53: ＝
K55: =+AS22 -> 1270

Sheet No2 記載例（時給から月給）
B1: キャリアアップ助成金正社員化コース 賃金上昇要件確認ツール （転換等の前後で所定労働時間や給与支給形態に変更が生じている場合）
A2: 名 前 （雇用保険被保険者番号） | C2: 厚労 太郎
C3: 1111-111111-1
A4: 転換または直接雇用前６か月（A）
A5: 賃金算定期間 | C5: 10 | D5: 月 | E5: 1 | F5: 日 | J5: 11 | K5: 月 | L5: 1 | M5: 日 | Q5: 12 | R5: 月 | S5: 1 | T5: 日 | X5: 1 | Y5: 月 | Z5: 1 | AA5: 日 | AE5: 2 | AF5: 月 | AG5: 1 | AH5: 日 | AL5: 3 | AM5: 月 | AN5: 1 | AO5: 日 | AS5: 合 計
E6: ～ | F6: 10 | G6: 月 | H6: 31 | I6: 日 | L6: ～ | M6: 11 | N6: 月 | O6: 30 | P6: 日 | S6: ～ | T6: 12 | U6: 月 | V6: 31 | W6: 日 | Z6: ～ | AA6: 1 | AB6: 月 | AC6: 31 | AD6: 日 | AG6: ～ | AH6: 2 | AI6: 月 | AJ6: 28 | AK6: 日 | AN6: ～ | AO6: 3 | AP6: 月 | AQ6: 31 | AR6: 日
A7: 1月の月平均所定労働時間（※） | C7: 120 | J7: 130 | Q7: 125 | X7: 115 | AE7: 120 | AL7: 115 | AS7: =SUM(C7:AR7) -> 725
A8: 基本賃金 | C8: 120000 | J8: 130000 | Q8: 125000 | X8: 115000 | AE8: 120000 | AL8: 115000 | AS8: 725000
A9: 手 当 | B9: 手当 | AS9: 0
B10: 手当 | AS10: 0
B11: 手当 | AS11: 0
B12: 手当 | AS12: 0
B13: 手当 | AS13: 0
B14: 手当 | AS14: 0
B15: 手当 | AS15: 0
B16: 手当 | AS16: 0
B17: 手当 | AS17: 0
B18: 手当 | AS18: 0
A19: 賞 与 | Q19: 50000 | AS19: 50000
A20: 合 計 | C20: =SUM(C8:I19) -> 120000 | J20: =SUM(J8:P19) -> 130000 | Q20: =SUM(Q8:W19) -> 175000 | X20: =SUM(X8:AD19) -> 115000 | AE20: =SUM(AE8:AK19) -> 120000 | AL20: =SUM(AL8:AR19) -> 115000 | AS20: 775000
AE22: 転換前1時間あたり賃金→ | AS22: =ROUNDUP(AS20/AS7,0) -> 1069
A24: 転換または直接雇用後６か月（B）
A25: 賃金算定期間 | C25: 4 | D25: 月 | E25: 1 | F25: 日 | J25: 5 | K25: 月 | L25: 1 | M25: 日 | Q25: 6 | R25: 月 | S25: 1 | T25: 日 | X25: 7 | Y25: 月 | Z25: 1 | AA25: 日 | AE25: 8 | AF25: 月 | AG25: 1 | AH25: 日 | AL25: 9 | AM25: 月 | AN25: 1 | AO25: 日 | AS25: 合 計
E26: ～ | F26: 4 | G26: 月 | H26: 30 | I26: 日 | L26: ～ | M26: 5 | N26: 月 | O26: 31 | P26: 日 | S26: ～ | T26: 6 | U26: 月 | V26: 30 | W26: 日 | Z26: ～ | AA26: 7 | AB26: 月 | AC26: 31 | AD26: 日 | AG26: ～ | AH26: 8 | AI26: 月 | AJ26: 31 | AK26: 日 | AN26: ～ | AO26: 9 | AP26: 月 | AQ26: 30 | AR26: 日
A27: 1月の月平均所定労働時間（※） | C27: 173.33 | J27: 173.33 | Q27: 173.33 | X27: 173.33 | AE27: 173.33 | AL27: 173.33 | AS27: =SUM(C27:AR27) -> 1039.98
A28: 基本賃金 | C28: 240000 | J28: 240000 | Q28: 240000 | X28: 240000 | AE28: 240000 | AL28: 240000 | AS28: 1440000
A29: 手 当 | B29: 手当 | AS29: 0
B30: 手当 | AS30: 0
B31: 手当 | AS31: 0
B32: 手当 | AS32: 0
B33: 手当 | AS33: 0
B34: 手当 | AS34: 0
B35: 手当 | AS35: 0
B36: 手当 | AS36: 0
B37: 手当 | AS37: 0
B38: 手当 | AS38: 0
A39: 賞 与 | Q39: 100000 | AS39: 100000
A40: 合 計 | C40: =SUM(C28:I39) -> 240000 | J40: =SUM(J28:P39) -> 240000 | Q40: =SUM(Q28:W39) -> 340000 | X40: =SUM(X28:AD39) -> 240000 | AE40: =SUM(AE28:AK39) -> 240000 | AL40: =SUM(AL28:AR39) -> 240000 | AS40: 1540000
A42: （B）の賃金算定期間外で、支給申請時点で支給が確定している賞与（C）
A44: 支給日
A45: 金額
AL47: （B）＋（C）
Y48: 転換後1時間あたり賃金→ | AL48: =ROUNDUP((AS40+C45)/AS27,0) -> 1481
K50: （B）＋（C） | T50: （A）
AN51: 賃金上昇率
K52: =+AL48 -> 1481 | R52: － | T52: =+AS22 -> 1069 | AN52: =+INT((K52-T52)/K55*100) -> 38
AC53: × 100 | AJ53: ＝
K55: =+AS22 -> 1069

Sheet パンフレット
